[Event "9th RTU Rapid 2019"]
[Site "Riga"]
[Date "2019.08.04"]
[Round "3.15"]
[White "Maltsevskaya, Aleksandra"]
[Black "Rudovskii, Filipp"]
[Result "1-0"]
[WhiteElo "2321"]
[BlackElo "2127"]
[PlyCount "133"]
[EventDate "2019.08.05"]
[EventType "swiss"]
[EventCountry "LAT"]
[TimeControl "5400+30"]
[WhiteClock "0:00:39"]
[BlackClock "0:04:07"]

1. Nf3 {[%emt 1:15:23]} Nf6 {[%emt 1:15:22]} 2. g3 {[%emt 0:00:26]} g6 {[%emt 0:00:26]} 3. Bg2 {[%emt 0:00:27]} Bg7 {[%emt 0:00:26]} 4. O-O {[%emt 0:00:28]} O-O {[%emt 0:00:28]} 5. d4 {[%emt 0:00:27]} d5 {[%emt 0:00:27]} 6. c4 {[%emt 0:00:26]} Nc6 {[%emt 0:00:27]} 7. cxd5 {[%emt 0:01:51]} Nxd5 {[%emt 0:00:32]} 8. Nc3 {[%emt 0:00:27]} Nb6 {[%emt 0:00:27]} 9. e3 {[%emt 0:00:26]} Bg4 {[%emt 0:03:20]} 10. h3 {[%emt 0:00:41]} Bxf3 {[%emt 0:00:32]} 11. Qxf3 {[%emt 0:00:37]} e5 {[%emt 0:00:47]} 12. dxe5 {[%emt 0:02:37]} Bxe5 {[%emt 0:01:24]} 13. Qe2 {[%emt 0:00:43]} Qe7 {[%emt 0:00:53]} 14. Bd2 {[%emt 0:01:54]} Rad8 {[%emt 0:00:50]} 15. Rfd1 {[%emt 0:00:36]} Nb4 {[%emt 0:00:47]} 16. Be1 {[%emt 0:01:19]} c6 {[%emt 0:00:29]} 17. a3 {[%emt 0:00:54]} N4d5 {[%emt 0:01:56]} 18. Nxd5 {[%emt 0:00:37]} Nxd5 {[%emt 0:02:38]} 19. Bxd5 {[%emt 0:00:31]} Rxd5 {[%emt 0:00:35]} 20. Rxd5 {[%emt 0:00:36]} cxd5 {[%emt 0:00:28]} 21. Bb4 {[%emt 0:00:31]} Bd6 {[%emt 0:00:27]} 22. Bxd6 {[%emt 0:00:27]} Qxd6 {[%emt 0:00:27]} 23. Rd1 {[%emt 0:00:27]} Qc5 {[%emt 0:00:49]} 24. Rd4 {[%emt 0:00:45]} Rd8 {[%emt 0:01:46]} 25. Qd2 {[%emt 0:00:38]} f5 {[%emt 0:00:27]} 26. Kg2 {[%emt 0:01:03]} Rd6 {[%emt 0:04:32]} 27. g4 {[%emt 0:00:48]} fxg4 {[%emt 0:00:38]} 28. hxg4 {[%emt 0:00:27]} Qc8 {[%emt 0:01:05]} 29. Rf4 {[%emt 0:02:50]} Qe6 {[%emt 0:00:38]} 30. Qd4 {[%emt 0:00:27]} b6 {[%emt 0:00:32]} 31. Qd1 {[%emt 0:01:12]} Rc6 {[%emt 0:00:28]} 32. Qf3 {[%emt 0:00:29]} Kg7 {[%emt 0:00:31]} 33. Rd4 {[%emt 0:00:41]} Rd6 {[%emt 0:00:29]} 34. Qf4 {[%emt 0:00:41]} Rd7 {[%emt 0:00:26]} 35. Qf3 {[%emt 0:00:33]} h6 {[%emt 0:00:40]} 36. Qd1 {[%emt 0:00:34]} Rf7 {[%emt 0:00:39]} 37. Rxd5 {[%emt 0:01:12]} Qe4+ {[%emt 0:00:34]} 38. Kg3 {[%emt 0:00:26]} Kh7 {[%emt 0:00:26]} 39. Rd4 {[%emt 0:00:38]} Qe5+ {[%emt 0:00:27]} 40. Kg2 {[%emt 0:00:26]} Qf6 {[%emt 0:00:28]} 41. Rf4 {[%emt 0:00:36]} Qc6+ {[%emt 0:00:26]} 42. Qf3 {[%emt 0:00:26]} Qxf3+ {[%emt 0:00:31]} 43. Kxf3 {[%emt 0:00:26]} Rc7 {[%emt 0:00:25]} 44. Rd4 {[%emt 0:00:31]} Kg7 {[%emt 0:00:27]} 45. Ke2 {[%emt 0:00:30]} Kf6 {[%emt 0:00:27]} 46. f4 {[%emt 0:00:27]} h5 {[%emt 0:00:38]} 47. gxh5 {[%emt 0:00:31]} gxh5 {[%emt 0:00:26]} 48. Kf3 {[%emt 0:00:37]} Rc2 {[%emt 0:00:32]} 49. Rd6+ {[%emt 0:00:28]} Ke7 {[%emt 0:00:29]} 50. Rh6 {[%emt 0:00:27]} Rxb2 {[%emt 0:00:32]} 51. Rxh5 {[%emt 0:00:27]} Kf6 {[%emt 0:00:29]} 52. Rh6+ {[%emt 0:00:27]} Kg7 {[%emt 0:00:27]} 53. Rc6 {[%emt 0:00:26]} a5 {[%emt 0:00:27]} 54. a4 {[%emt 0:00:30]} Rb4 {[%emt 0:00:27]} 55. e4 {[%emt 0:00:28]} b5 {[%emt 0:00:40]} 56. axb5 {[%emt 0:00:27]} Rxb5 {[%emt 0:00:26]} 57. Ra6 {[%emt 0:00:26]} Kf7 {[%emt 0:00:35]} 58. Kg4 {[%emt 0:00:27]} Ke7 {[%emt 0:00:28]} 59. e5 {[%emt 0:00:26]} Kf7 {[%emt 0:00:27]} 60. Kf5 {[%emt 0:00:26]} Ke7 {[%emt 0:00:26]} 61. Ra7+ {[%emt 0:00:27]} Kd8 {[%emt 0:00:27]} 62. Kf6 {[%emt 0:00:26]} Rb4 {[%emt 0:00:37]} 63. f5 {[%emt 0:00:27]} a4 {[%emt 0:00:30]} 64. e6 {[%emt 0:00:27]} Re4 {[%emt 0:00:27]} 65. e7+ {[%emt 0:00:32]} Ke8 {[%emt 0:00:27]} 66. Ra8+ {[%emt 0:00:28]} Kd7 {[%emt 0:00:25]} 67. Rd8+ {[%emt 0:00:26]} 1-0

[Event "9th RTU Rapid 2019"]
[Site "Riga"]
[Date "2019.08.04"]
[Round "3.16"]
[White "Gagare, Shalmali"]
[Black "Nesteretz, Anatoliy"]
[Result "1-0"]
[WhiteElo "1984"]
[BlackElo "2317"]
[PlyCount "59"]
[EventDate "2019.08.05"]
[EventType "swiss"]
[EventCountry "LAT"]
[TimeControl "5400+30"]
[WhiteClock "0:00:07"]
[BlackClock "0:01:59"]

1. c4 {[%emt 1:15:34]} b6 {[%emt 1:15:41]} 2. Nf3 {[%emt 0:00:45]} Bb7 {[%emt 0:00:27]} 3. g3 {[%emt 0:00:32]} Bxf3 {[%emt 0:00:32]} 4. exf3 {[%emt 0:00:27]} e6 {[%emt 0:04:52]} 5. Bg2 {[%emt 0:00:40]} Nf6 {[%emt 0:01:05]} 6. O-O {[%emt 0:00:50]} Be7 {[%emt 0:00:54]} 7. f4 {[%emt 0:01:28]} d5 {[%emt 0:00:54]} 8. f5 {[%emt 0:03:19]} exf5 {[%emt 0:00:44]} 9. cxd5 {[%emt 0:00:35]} Bd6 {[%emt 0:03:03]} 10. Re1+ {[%emt 0:00:35]} Kf8 {[%emt 0:00:25]} 11. Qc2 {[%emt 0:01:09]} g6 {[%emt 0:00:34]} 12. Nc3 {[%emt 0:00:58]} a6 {[%emt 0:00:57]} 13. Ne2 {[%emt 0:01:18]} Kg7 {[%emt 0:01:08]} 14. b3 {[%emt 0:01:06]} Nbd7 {[%emt 0:02:16]} 15. Nd4 {[%emt 0:01:08]} Re8 {[%emt 0:01:27]} 16. Bb2 {[%emt 0:00:42]} Rxe1+ {[%emt 0:00:34]} 17. Rxe1 {[%emt 0:00:29]} Qf8 {[%emt 0:01:07]} 18. Nxf5+ gxf5 {[%emt 0:00:26]} 19. Qxf5 {[%emt 0:02:34]} Kg8 {[%emt 0:01:15]} 20. Bxf6 {[%emt 0:01:10]} Nxf6 {[%emt 0:00:27]} 21. Qxf6 {[%emt 0:00:28]} Qg7 {[%emt 0:01:06]} 22. Qf5 {[%emt 0:00:28]} Kf8 {[%emt 0:00:47]} 23. Qe4 {[%emt 0:01:32]} h6 {[%emt 0:00:31]} 24. Bh3 {[%emt 0:00:30]} Rd8 {[%emt 0:00:35]} 25. Re3 {[%emt 0:00:50]} Qg6 {[%emt 0:00:35]} 26. Bf5 {[%emt 0:00:31]} Qf6 {[%emt 0:00:29]} 27. Rf3 {[%emt 0:00:32]} Re8 {[%emt 0:00:28]} 28. Be6 {[%emt 0:00:34]} Qg7 {[%emt 0:00:29]} 29. Qh4 {[%emt 0:01:39]} Re7 {[%emt 0:00:35]} 30. Rxf7+ {[%emt 0:00:38]} 1-0

[Event "9th RTU Rapid 2019"]
[Site "Riga"]
[Date "2019.08.04"]
[Round "3.17"]
[White "Miedema, David"]
[Black "Vaskevicius, Augustas"]
[Result "1-0"]
[WhiteElo "2313"]
[BlackElo "2022"]
[PlyCount "89"]
[EventDate "2019.08.05"]
[EventType "swiss"]
[EventCountry "LAT"]
[TimeControl "5400+30"]
[WhiteClock "0:00:12"]
[BlackClock "0:01:10"]

1. e4 {[%emt 1:15:22]} e5 {[%emt 1:15:24]} 2. Nf3 {[%emt 0:00:27]} Nc6 {[%emt 0:00:27]} 3. Bb5 {[%emt 0:00:26]} Nf6 {[%emt 0:00:27]} 4. O-O {[%emt 0:00:28]} Nxe4 {[%emt 0:00:27]} 5. d4 {[%emt 0:00:26]} Nd6 {[%emt 0:00:28]} 6. Bxc6 {[%emt 0:00:27]} dxc6 {[%emt 0:00:27]} 7. dxe5 {[%emt 0:00:26]} Nf5 {[%emt 0:00:27]} 8. Qxd8+ {[%emt 0:00:26]} Kxd8 {[%emt 0:00:27]} 9. h3 {[%emt 0:00:26]} h5 {[%emt 0:00:46]} 10. Nc3 {[%emt 0:01:07]} Ke8 {[%emt 0:00:27]} 11. Bf4 {[%emt 0:00:46]} Be7 {[%emt 0:01:22]} 12. Ne2 {[%emt 0:00:55]} Be6 {[%emt 0:02:31]} 13. Ned4 {[%emt 0:00:33]} Nxd4 {[%emt 0:01:31]} 14. Nxd4 {[%emt 0:00:26]} Rd8 {[%emt 0:01:10]} 15. Be3 {[%emt 0:00:32]} Rd5 {[%emt 0:02:18]} 16. Rae1 {[%emt 0:02:04]} Bc5 {[%emt 0:02:33]} 17. Nf3 {[%emt 0:01:09]} Bxe3 {[%emt 0:00:53]} 18. Rxe3 {[%emt 0:00:26]} Ke7 {[%emt 0:00:44]} 19. Ne1 {[%emt 0:02:21]} Rd2 {[%emt 0:01:14]} 20. f4 {[%emt 0:00:28]} g6 {[%emt 0:01:04]} 21. Rf2 {[%emt 0:00:26]} Rhd8 {[%emt 0:00:48]} 22. Nd3 {[%emt 0:03:26]} Rd1+ {[%emt 0:01:23]} 23. Kh2 {[%emt 0:00:26]} Bf5 {[%emt 0:00:59]} 24. Nc5 {[%emt 0:00:49]} b6 {[%emt 0:01:06]} 25. Na6 {[%emt 0:00:26]} R8d2 {[%emt 0:01:06]} 26. Ree2 {[%emt 0:00:34]} Rxe2 {[%emt 0:00:33]} 27. Rxe2 {[%emt 0:00:26]} Rd4 {[%emt 0:00:50]} 28. Kg3 {[%emt 0:01:55]} Ra4 {[%emt 0:00:45]} 29. Nb8 {[%emt 0:00:26]} Rxa2 {[%emt 0:01:12]} 30. c3 {[%emt 0:01:04]} c5 {[%emt 0:00:41]} 31. Rd2 {[%emt 0:00:26]} a5 {[%emt 0:00:31]} 32. Nc6+ {[%emt 0:00:36]} Ke6 {[%emt 0:00:33]} 33. Nd8+ {[%emt 0:00:56]} Ke7 {[%emt 0:00:27]} 34. Nc6+ {[%emt 0:00:27]} Ke6 {[%emt 0:00:29]} 35. Kh4 {[%emt 0:00:35]} Be4 {[%emt 0:00:32]} 36. Nd8+ {[%emt 0:00:51]} Ke7 {[%emt 0:00:28]} 37. g4 {[%emt 0:00:30]} hxg4 {[%emt 0:00:29]} 38. hxg4 {[%emt 0:00:26]} a4 {[%emt 0:00:30]} 39. Kg5 {[%emt 0:01:18]} a3 {[%emt 0:00:34]} 40. f5 {[%emt 0:00:26]} axb2 {[%emt 0:00:37]} 41. f6+ {[%emt 0:00:28]} Ke8 {[%emt 0:00:31]} 42. e6 {[%emt 0:02:55]} fxe6 {[%emt 0:00:38]} 43. f7+ {[%emt 0:00:43]} Ke7 {[%emt 0:00:31]} 44. Rf2 {[%emt 0:00:37]} Kf8 {[%emt 0:00:28]} 45. Nxe6+ {[%emt 0:00:27]} 1-0

[Event "9th RTU Rapid 2019"]
[Site "Riga"]
[Date "2019.08.04"]
[Round "3.18"]
[White "Lavendelis, Egons"]
[Black "Pavlovs, Nikita"]
[Result "1-0"]
[WhiteElo "2292"]
[BlackElo "1845"]
[PlyCount "69"]
[EventDate "2019.08.05"]
[EventType "swiss"]
[EventCountry "LAT"]
[TimeControl "5400+30"]
[WhiteClock "0:00:17"]
[BlackClock "0:06:11"]

1. e4 {[%emt 1:15:22]} d6 {[%emt 1:15:21]} 2. d4 {[%emt 0:00:26]} Nf6 {[%emt 0:00:27]} 3. Nc3 {[%emt 0:00:27]} g6 {[%emt 0:00:26]} 4. Be3 {[%emt 0:00:27]} Bg7 {[%emt 0:00:28]} 5. f3 {[%emt 0:00:29]} c6 {[%emt 0:00:27]} 6. a4 {[%emt 0:00:27]} O-O {[%emt 0:01:03]} 7. Qd2 {[%emt 0:00:33]} Nbd7 {[%emt 0:00:29]} 8. g4 {[%emt 0:00:35]} e5 {[%emt 0:00:33]} 9. h4 {[%emt 0:00:55]} h5 {[%emt 0:00:36]} 10. g5 {[%emt 0:01:11]} Ne8 {[%emt 0:01:25]} 11. dxe5 {[%emt 0:01:19]} dxe5 {[%emt 0:00:36]} 12. Bc5 {[%emt 0:00:50]} Nc7 {[%emt 0:00:52]} 13. Bxf8 {[%emt 0:00:29]} Qxf8 {[%emt 0:01:05]} 14. Bc4 {[%emt 0:00:38]} a5 {[%emt 0:00:32]} 15. O-O-O {[%emt 0:03:21]} Nc5 {[%emt 0:03:40]} 16. Qd8 {[%emt 0:01:03]} Be6 {[%emt 0:02:38]} 17. Qxf8+ {[%emt 0:01:01]} Kxf8 {[%emt 0:00:49]} 18. Bxe6 {[%emt 0:00:31]} N7xe6 {[%emt 0:00:37]} 19. Nge2 {[%emt 0:00:27]} Ke7 {[%emt 0:00:48]} 20. b3 {[%emt 0:00:38]} Nd4 {[%emt 0:04:01]} 21. Nxd4 {[%emt 0:01:36]} exd4 {[%emt 0:00:27]} 22. Ne2 {[%emt 0:00:27]} Rd8 {[%emt 0:00:29]} 23. Nf4 {[%emt 0:00:36]} Be5 {[%emt 0:01:47]} 24. Nd3 {[%emt 0:00:45]} Nxd3+ {[%emt 0:00:27]} 25. Rxd3 {[%emt 0:00:43]} Rd6 {[%emt 0:01:23]} 26. Kd1 {[%emt 0:00:41]} c5 {[%emt 0:00:54]} 27. Ke2 {[%emt 0:00:36]} b6 {[%emt 0:00:51]} 28. Rdd1 {[%emt 0:00:29]} Bf4 {[%emt 0:00:33]} 29. Kd3 {[%emt 0:00:33]} Ke6 {[%emt 0:00:29]} 30. Kc4 {[%emt 0:00:48]} Be5 {[%emt 0:00:38]} 31. Rhf1 {[%emt 0:00:28]} Bg3 {[%emt 0:00:30]} 32. f4 {[%emt 0:01:08]} Bxh4 {[%emt 0:00:27]} 33. Rd3 {[%emt 0:00:27]} f6 {[%emt 0:00:26]} 34. gxf6 {[%emt 0:00:26]} Bxf6 {[%emt 0:00:29]} 35. e5 {[%emt 0:00:27]} 1-0

[Event "9th RTU Rapid 2019"]
[Site "Riga"]
[Date "2019.08.04"]
[Round "3.19"]
[White "Hasani, Takin"]
[Black "Grinev, Valeriy"]
[Result "0-1"]
[WhiteElo "1849"]
[BlackElo "2287"]
[PlyCount "56"]
[EventDate "2019.08.05"]
[EventType "swiss"]
[EventCountry "LAT"]
[TimeControl "5400+30"]
[WhiteClock "0:00:20"]
[BlackClock "0:00:32"]

1. e4 {[%emt 1:15:21]} c5 {[%emt 1:15:24]} 2. Nf3 {[%emt 0:00:26]} e6 {[%emt 0:00:28]} 3. d4 {[%emt 0:00:27]} cxd4 {[%emt 0:00:28]} 4. Nxd4 {[%emt 0:00:26]} a6 {[%emt 0:00:27]} 5. Nc3 {[%emt 0:00:27]} Qc7 {[%emt 0:00:27]} 6. g3 {[%emt 0:00:27]} Bb4 {[%emt 0:00:28]} 7. Bd2 {[%emt 0:00:34]} Nf6 {[%emt 0:00:28]} 8. Bg2 {[%emt 0:00:27]} Nc6 {[%emt 0:00:27]} 9. Nb3 {[%emt 0:00:27]} Be7 {[%emt 0:00:30]} 10. O-O {[%emt 0:00:28]} d6 {[%emt 0:00:30]} 11. Be3 {[%emt 0:00:33]} b5 {[%emt 0:00:30]} 12. a3 {[%emt 0:00:26]} Bb7 {[%emt 0:00:27]} 13. f4 {[%emt 0:00:37]} Nd7 {[%emt 0:00:31]} 14. g4 {[%emt 0:01:40]} Nb6 {[%emt 0:00:29]} 15. g5 {[%emt 0:06:03]} Nc4 {[%emt 0:00:28]} 16. Bc1 {[%emt 0:00:26]} g6 {[%emt 0:03:51]} 17. f5 {[%emt 0:01:59]} gxf5 {[%emt 0:06:04]} 18. exf5 {[%emt 0:00:29]} N6e5 {[%emt 0:00:39]} 19. fxe6 {[%emt 0:02:06]} fxe6 {[%emt 0:00:30]} 20. Bh3 {[%emt 0:01:03]} Qc6 {[%emt 0:01:00]} 21. Qh5+ {[%emt 0:02:40]} Kd8 {[%emt 0:00:27]} 22. Bf4 {[%emt 0:01:01]} Rf8 {[%emt 0:00:28]} 23. Ne2 {[%emt 0:02:16]} Qh1+ {[%emt 0:05:26]} 24. Kf2 {[%emt 0:00:26]} Rxf4+ {[%emt 0:00:47]} 25. Nxf4 {[%emt 0:00:36]} Qxh2+ {[%emt 0:00:27]} 26. Ke1 {[%emt 0:00:34]} Qg3+ {[%emt 0:01:03]} 27. Ke2 {[%emt 0:00:34]} Qe3+ {[%emt 0:00:29]} 28. Kd1 {[%emt 0:00:29]} Nxb2# {[%emt 0:00:27]} 0-1

[Event "9th RTU Rapid 2019"]
[Site "Riga"]
[Date "2019.08.04"]
[Round "3.20"]
[White "Dubrovin, Robert"]
[Black "Jonsson, Gauti Pall"]
[Result "1-0"]
[WhiteElo "2282"]
[BlackElo "2080"]
[PlyCount "95"]
[EventDate "2019.08.05"]
[EventType "swiss"]
[EventCountry "LAT"]
[TimeControl "5400+30"]
[WhiteClock "0:00:40"]
[BlackClock "0:02:49"]

1. d4 {[%emt 1:15:22]} Nf6 {[%emt 1:15:24]} 2. c4 {[%emt 0:00:26]} b6 {[%emt 0:00:29]} 3. Nf3 {[%emt 0:00:28]} Bb7 {[%emt 0:00:28]} 4. g3 {[%emt 0:00:26]} g6 {[%emt 0:00:35]} 5. Bg2 {[%emt 0:00:26]} Bg7 {[%emt 0:00:28]} 6. O-O {[%emt 0:00:26]} O-O {[%emt 0:00:28]} 7. Nc3 {[%emt 0:00:27]} Ne4 {[%emt 0:00:30]} 8. Nxe4 {[%emt 0:00:26]} Bxe4 {[%emt 0:00:28]} 9. Be3 {[%emt 0:00:27]} d5 {[%emt 0:00:43]} 10. Rc1 {[%emt 0:00:37]} Nd7 {[%emt 0:00:47]} 11. Qb3 {[%emt 0:00:38]} e6 {[%emt 0:01:33]} 12. Rfd1 {[%emt 0:00:40]} c6 {[%emt 0:01:06]} 13. Bf4 {[%emt 0:01:12]} Qe7 {[%emt 0:00:45]} 14. cxd5 {[%emt 0:00:33]} Bxd5 {[%emt 0:02:44]} 15. Qc2 {[%emt 0:00:44]} f5 {[%emt 0:00:56]} 16. h4 {[%emt 0:01:21]} Be4 {[%emt 0:01:28]} 17. Qb3 {[%emt 0:00:46]} Bd5 {[%emt 0:00:32]} 18. Qc2 {[%emt 0:00:43]} Be4 {[%emt 0:00:27]} 19. Qa4 {[%emt 0:00:26]} Rfc8 {[%emt 0:00:54]} 20. Ng5 {[%emt 0:01:14]} Bxg2 21. Kxg2 {[%emt 0:00:26]} h6 {[%emt 0:03:27]} 22. Nf3 {[%emt 0:00:48]} b5 {[%emt 0:00:38]} 23. Qb3 {[%emt 0:01:41]} Nb6 {[%emt 0:00:36]} 24. Rc2 {[%emt 0:01:17]} Nd5 {[%emt 0:02:00]} 25. Be5 {[%emt 0:00:29]} Bf8 {[%emt 0:00:26]} 26. Rdc1 {[%emt 0:00:37]} Qd7 {[%emt 0:00:31]} 27. a3 {[%emt 0:00:53]} a6 {[%emt 0:00:26]} 28. Qd3 {[%emt 0:00:40]} Ne7 {[%emt 0:01:14]} 29. Nd2 {[%emt 0:01:09]} Bg7 {[%emt 0:00:38]} 30. Bxg7 {[%emt 0:00:43]} Kxg7 {[%emt 0:00:26]} 31. Nf3 {[%emt 0:00:27]} Rc7 {[%emt 0:00:47]} 32. Rc5 {[%emt 0:00:36]} Rd8 {[%emt 0:00:35]} 33. e3 {[%emt 0:00:48]} Qd6 {[%emt 0:00:52]} 34. Ne5 {[%emt 0:00:34]} Rdc8 {[%emt 0:00:32]} 35. Qc3 {[%emt 0:00:43]} Nd5 {[%emt 0:00:45]} 36. Qa5 {[%emt 0:00:38]} g5 {[%emt 0:01:16]} 37. hxg5 {[%emt 0:00:40]} hxg5 {[%emt 0:00:25]} 38. Qxa6 {[%emt 0:00:28]} Ne7 {[%emt 0:00:39]} 39. Rxb5 {[%emt 0:00:54]} Rh8 {[%emt 0:01:06]} 40. Rbc5 {[%emt 0:00:56]} f4 {[%emt 0:00:35]} 41. exf4 {[%emt 0:02:52]} gxf4 {[%emt 0:00:31]} 42. Qe2 {[%emt 0:00:36]} Qxd4 {[%emt 0:00:42]} 43. R1c4 {[%emt 0:01:00]} Qd6 {[%emt 0:00:52]} 44. Qg4+ {[%emt 0:00:25]} Kf8 {[%emt 0:00:37]} 45. Rxf4+ {[%emt 0:00:47]} Ke8 {[%emt 0:00:30]} 46. Qg7 {[%emt 0:01:15]} Rg8 {[%emt 0:00:29]} 47. Qf7+ {[%emt 0:00:03]} Kd8 48. Qf8+ {[%emt 0:00:58]} 1-0

[Event "9th RTU Rapid 2019"]
[Site "Riga"]
[Date "2019.08.04"]
[Round "3.21"]
[White "Evchin, Maxim"]
[Black "Gukesh D"]
[Result "1/2-1/2"]
[WhiteElo "2269"]
[BlackElo "1683"]
[PlyCount "86"]
[EventDate "2019.08.05"]
[EventType "swiss"]
[EventCountry "LAT"]
[TimeControl "5400+30"]
[WhiteClock "0:00:09"]
[BlackClock "0:02:50"]

1. d4 {[%emt 1:15:22]} Nf6 {[%emt 1:15:25]} 2. Bg5 {[%emt 0:00:27]} Ne4 {[%emt 0:00:33]} 3. Bf4 {[%emt 0:00:27]} c5 {[%emt 0:00:33]} 4. f3 {[%emt 0:00:31]} Qa5+ {[%emt 0:00:35]} 5. c3 {[%emt 0:00:28]} Nf6 {[%emt 0:00:34]} 6. d5 {[%emt 0:00:28]} d6 {[%emt 0:01:11]} 7. e4 {[%emt 0:00:59]} g6 {[%emt 0:00:45]} 8. Na3 {[%emt 0:00:39]} Bg7 {[%emt 0:00:34]} 9. Qd2 {[%emt 0:00:36]} O-O {[%emt 0:00:53]} 10. Nc4 {[%emt 0:00:51]} Qd8 {[%emt 0:00:47]} 11. a4 {[%emt 0:00:29]} Nbd7 {[%emt 0:02:06]} 12. Nh3 {[%emt 0:00:30]} Nb6 {[%emt 0:00:37]} 13. Nf2 {[%emt 0:00:30]} Bd7 {[%emt 0:00:58]} 14. a5 {[%emt 0:00:33]} Nxc4 {[%emt 0:00:36]} 15. Bxc4 {[%emt 0:00:27]} b5 {[%emt 0:00:36]} 16. axb6 {[%emt 0:00:30]} axb6 {[%emt 0:00:28]} 17. O-O {[%emt 0:00:28]} b5 {[%emt 0:00:31]} 18. Be2 {[%emt 0:00:30]} Qb6 {[%emt 0:00:34]} 19. Be3 {[%emt 0:01:20]} Qb7 {[%emt 0:00:44]} 20. f4 {[%emt 0:01:15]} Rxa1 {[%emt 0:01:19]} 21. Rxa1 {[%emt 0:00:26]} Ra8 {[%emt 0:00:26]} 22. Qd1 {[%emt 0:01:15]} Ne8 {[%emt 0:03:14]} 23. h4 {[%emt 0:01:55]} Nc7 {[%emt 0:00:51]} 24. h5 {[%emt 0:00:50]} b4 {[%emt 0:01:44]} 25. Rxa8+ {[%emt 0:00:53]} Nxa8 {[%emt 0:00:30]} 26. hxg6 {[%emt 0:01:10]} hxg6 {[%emt 0:00:28]} 27. e5 {[%emt 0:01:23]} bxc3 {[%emt 0:00:52]} 28. bxc3 {[%emt 0:00:27]} dxe5 {[%emt 0:01:24]} 29. fxe5 {[%emt 0:00:39]} Bxe5 {[%emt 0:01:15]} 30. Ne4 {[%emt 0:01:11]} Qb2 {[%emt 0:01:06]} 31. Bxc5 {[%emt 0:00:47]} Bf5 {[%emt 0:01:49]} 32. d6 {[%emt 0:03:23]} exd6 {[%emt 0:01:09]} 33. Bxd6 {[%emt 0:00:32]} Qb6+ {[%emt 0:01:08]} 34. Bc5 {[%emt 0:01:31]} Qc7 {[%emt 0:00:35]} 35. Bd6 {[%emt 0:00:34]} Qb6+ {[%emt 0:00:32]} 36. Bc5 {[%emt 0:00:26]} Qc7 {[%emt 0:00:26]} 37. Bd6 {[%emt 0:00:26]} Qb6+ {[%emt 0:00:34]} 38. Bc5 {[%emt 0:00:26]} Qa5 {[%emt 0:00:26]} 39. Bb4 {[%emt 0:00:36]} Qa7+ {[%emt 0:00:29]} 40. Bc5 {[%emt 0:00:34]} Qc7 {[%emt 0:00:32]} 41. Bd6 {[%emt 0:00:26]} Bxd6 {[%emt 0:00:33]} 42. Nxd6 {[%emt 0:01:01]} Be6 {[%emt 0:00:30]} 43. Qd4 {[%emt 0:00:29]} Qb6 {[%emt 0:00:29] Qd1 [%emt 00:00:05]} 1/2-1/2

[Event "9th RTU Rapid 2019"]
[Site "Riga"]
[Date "2019.08.04"]
[Round "3.22"]
[White "Dhyana Patel"]
[Black "Chibukhchyan, Erik"]
[Result "1-0"]
[WhiteElo "1900"]
[BlackElo "2231"]
[PlyCount "99"]
[EventDate "2019.08.05"]
[EventType "swiss"]
[EventCountry "LAT"]
[TimeControl "5400+30"]
[WhiteClock "0:00:19"]
[BlackClock "0:01:30"]

1. e4 {[%emt 1:15:23]} e5 {[%emt 1:15:22]} 2. Nf3 {[%emt 0:00:26]} Nc6 {[%emt 0:00:26]} 3. Bb5 {[%emt 0:00:27]} a6 {[%emt 0:00:26]} 4. Bxc6 dxc6 {[%emt 0:00:26]} 5. O-O {[%emt 0:00:54]} Qd6 {[%emt 0:00:26]} 6. Na3 {[%emt 0:00:27]} b5 {[%emt 0:00:34]} 7. Qe2 {[%emt 0:00:28]} Bg4 {[%emt 0:00:36]} 8. c3 {[%emt 0:00:32]} Rd8 {[%emt 0:00:42]} 9. h3 {[%emt 0:00:49]} Bxf3 {[%emt 0:00:38]} 10. Qxf3 {[%emt 0:00:27]} Qd3 {[%emt 0:00:26]} 11. Qf5 {[%emt 0:01:05]} Bxa3 {[%emt 0:03:31]} 12. bxa3 {[%emt 0:00:27]} f6 {[%emt 0:00:31]} 13. a4 {[%emt 0:00:58]} Ne7 {[%emt 0:00:35]} 14. Qg4 {[%emt 0:00:37]} Kf7 {[%emt 0:02:03]} 15. Re1 {[%emt 0:01:31]} h5 {[%emt 0:00:26]} 16. Qd1 {[%emt 0:00:38]} g5 {[%emt 0:01:30]} 17. axb5 {[%emt 0:00:51]} cxb5 {[%emt 0:00:30]} 18. a4 {[%emt 0:00:31]} Kg6 {[%emt 0:03:12]} 19. Re3 {[%emt 0:01:03]} Qc4 {[%emt 0:00:30]} 20. Qf3 {[%emt 0:00:44]} bxa4 {[%emt 0:01:34]} 21. Ba3 {[%emt 0:00:44]} c5 {[%emt 0:00:32]} 22. Qd1 {[%emt 0:00:59]} Rb8 {[%emt 0:01:54]} 23. d4 {[%emt 0:01:53]} cxd4 {[%emt 0:02:05]} 24. cxd4 {[%emt 0:00:33]} Nc6 {[%emt 0:00:44]} 25. Rc1 {[%emt 0:01:42]} Qb5 {[%emt 0:00:26]} 26. Rc5 {[%emt 0:00:52]} Qb1 {[%emt 0:00:30]} 27. Rc1 {[%emt 0:00:33]} Qb5 {[%emt 0:00:27]} 28. Rc5 {[%emt 0:00:27]} Qb1 {[%emt 0:00:38]} 29. Rc1 {[%emt 0:00:27]} Qb6 {[%emt 0:01:15]} 30. Bc5 {[%emt 0:00:44]} Qb5 {[%emt 0:00:31]} 31. d5 {[%emt 0:00:52]} Na5 {[%emt 0:00:26]} 32. Bd6 {[%emt 0:01:29]} Rbc8 {[%emt 0:00:31]} 33. Rb1 {[%emt 0:00:42]} Nb3 {[%emt 0:00:30]} 34. Ba3 {[%emt 0:01:36]} Qd7 {[%emt 0:00:29]} 35. Qe2 {[%emt 0:00:34]} Qb5 {[%emt 0:00:33]} 36. Qf3 {[%emt 0:00:48]} Nd4 {[%emt 0:00:39]} 37. Qd1 {[%emt 0:00:26]} Qd7 {[%emt 0:00:39]} 38. Rb6 {[%emt 0:00:29]} Rc4 {[%emt 0:01:04]} 39. Bb2 {[%emt 0:01:05]} Rhc8 {[%emt 0:00:30]} 40. Kh2 {[%emt 0:01:14]} Qa7 {[%emt 0:00:33]} 41. Rd6 {[%emt 0:00:55]} Qb8 {[%emt 0:00:38]} 42. Ba3 {[%emt 0:00:57]} Nb5 {[%emt 0:00:50]} 43. Rxa6 {[%emt 0:00:47]} Nxa3 {[%emt 0:00:31]} 44. Rxa3 {[%emt 0:00:28]} Rd4 {[%emt 0:00:32]} 45. Qf3 {[%emt 0:00:28]} Rf8 {[%emt 0:00:27]} 46. Qf5+ {[%emt 0:00:10]} Kg7 47. Rg3 {[%emt 0:01:15]} g4 {[%emt 0:01:03]} 48. hxg4 {[%emt 0:00:25]} h4 49. Rh3 {[%emt 0:00:58]} Qc8 {[%emt 0:00:50]} 50. Ra7+ {[%emt 0:00:40]} 1-0